Cogmind - Beta 13 @@@ ROGUE MODE // 2024.04.21 @ 17:41:52 Player: osman sinnoks Result: Self-destructed Performance ------------- Evolutions (1) 500 Regions Visited (5) 1000 Robots Destroyed (57) 285 Value Destroyed (1113) 1113 Prototype IDs (4) 80 Alien Tech Used (0) 0 Bonus (290) 290 TOTAL SCORE: 3268 Bonus ------- High Alert Combat Kills 90 Entered Garrisons 200 Cogmind --------- Core Integrity 17/400 Matter 280/300 Energy 230/250 System Corruption 4% Temperature Cool (0) Movement Treading (320) Ox2 Location -9/Recycling Parts ------- > --- POWER (1) -------- Ion Engine > --- PROPULSION (2) --- Light Treads Improved Treads > --- UTILITY (4) ------ Huge Storage Unit Signal Interpreter Transport Network Coupler Medium Armor Plating > --- WEAPON (2) ------- Small Laser Improved Medium Laser > --- INVENTORY (25) --- Cooling System Particle Charger ECM Suite Light Armor Plating Peak State ------------ > --- POWER ------------ Heavy Ion Engine > --- PROPULSION ------- Light Treads Light Treads > --- UTILITY ---------- Medium Storage Unit Signal Interpreter Transport Network Coupler Particle Charger > --- WEAPON ----------- Advanced Beam Cannon Advanced Beam Cannon > --- INVENTORY -------- Ion Engine Light Treads Light Treads Cooling System ECM Suite Light Armor Plating Improved Medium Laser Advanced Beam Cannon [Rating: 18] Favorites ----------- Power Ion Engine Engine Ion Engine Propulsion Light Treads Treads Light Treads Utility Signal Interpreter Device Seismic Detector Storage Small Storage Unit Processor Signal Interpreter Protection Light Armor Plating Weapon Grenade Launcher Energy Gun Improved Medium Laser Energy Cannon Advanced Beam Cannon Ballistic Gun Assault Rifle Launcher Grenade Launcher Build | -11 -10 -9 -9 -9 -9 ------- Run | Yrd Mat Mat Sto Gar Rec Slots Evolved 2 | . . 2 . . . Power . | . . . . . . Propulsion . | . . . . . . Utility 2 | . . 2 . . . Weapon . | . . . . . . Parts Attached 36 | 7 2 7 5 12 3 Power 4 | 1 . 1 . 2 . Engine 4 | 1 . 1 . 2 . Core . | . . . . . . Reactor . | . . . . . . Propulsion 9 | 2 . . 3 3 1 Treads 9 | 2 . . 3 3 1 Leg . | . . . . . . Wheel . | . . . . . . Hover . | . . . . . . Flight . | . . . . . . Utility 11 | 2 1 2 1 3 2 Device 3 | 1 . . . 2 . Storage 4 | 1 . 1 1 . 1 Processor 2 | . 1 1 . . . Hackware . | . . . . . . Protection 2 | . . . . 1 1 Artifact . | . . . . . . Weapon 12 | 2 1 4 1 4 . Energy Gun 5 | 1 . 2 . 2 . Energy Cannon 3 | . . . 1 2 . Ballistic Gun 2 | 1 . 1 . . . Ballistic Cannon . | . . . . . . Launcher 2 | . 1 1 . . . Special Weapon . | . . . . . . Impact Weapon . | . . . . . . Slashing Weapon . | . . . . . . Piercing Weapon . | . . . . . . Special Melee Weapon . | . . . . . . Unidentified Prototypes 4 | . . 3 1 . . Parts Lost 11 | . . 1 . 10 . Power 2 | . . . . 2 . Propulsion 3 | . . . . 3 . Utility 1 | . . . . 1 . Weapon 5 | . . 1 . 4 . Highest Loss Streak 7 | . . 1 . 7 . To Critical Strikes . | . . . . . . Average Slot Usage (%) 96 | . 100 99 100 91 93 Engine 11 | . 14 11 11 10 11 Treads 20 | . 28 22 22 18 15 Device 8 | . 14 11 11 6 . Storage 9 | . 4 11 11 11 11 Processor 19 | . 9 22 22 22 22 Protection 3 | . . . . 3 11 Energy Gun 6 | . . 2 . 5 22 Energy Cannon 3 | . . . 6 12 . Ballistic Gun 5 | . 14 8 4 . . Launcher 6 | . 13 10 11 1 . Naked Turns . | . . . . . . Heaviest Build 92 | 15 16 20 26 29 92 Greatest Support 43 | 40 40 40 40 40 43 Greatest Overweight (x) 9 | . . . . 9 2 Average Overweight (x) . | . . . . . . Largest Inventory Capacity 25 | 8 8 8 10 10 25 Average Capacity 8 | 7 5 7 8 10 10 Most Carried 9 | 2 5 8 9 9 4 Average Carried 5 | . 4 7 7 6 3 Final Capacity 25 | 8 5 8 10 10 25 Final Carried 9 | 1 5 7 9 3 4 Class Distribution -------------------- 51% | Scavenger-Mutant 48% | Mutant Dominant Class ---------------- Mutant | -10/Materials Mutant | -9/Materials Scavenger-Mutant | -9/Storage Scavenger-Mutant | -9/Garrison Scavenger-Mutant | -9/Recycling Resources | -11 -10 -9 -9 -9 -9 ----------- Run | Yrd Mat Mat Sto Gar Rec Matter Collected 1114 | 309 94 269 212 145 85 Remotely . | . . . . . . Salvage Created 2098 | 149 138 703 572 453 83 Parts 120 | 21 10 37 27 23 2 Haulers Intercepted 9 | . 1 4 4 . . Recyclers Shooed 4 | . . 3 . . 1 Parts Field Recycled . | . . . . . . Retrieved Matter . | . . . . . . Parts Self-Destructed . | . . . . . . Prevented . | . . . . . . Kills | -11 -10 -9 -9 -9 -9 ------- Run | Yrd Mat Mat Sto Gar Rec Combat Hostiles Destroyed 31 | . . 9 9 13 . Guns 8 | . . 6 . 2 . Cannons 14 | . . . 4 10 . AOE 8 | . . 3 5 . . Classes Destroyed 9 | 2 2 3 1 1 . Builder 1 | . . . 1 . . Tunneler 6 | 5 1 . . . . Hauler 9 | . 1 4 4 . . Recycler 8 | 1 1 4 2 . . Watcher 2 | . 1 1 . . . Swarmer 10 | . . 3 2 5 . Grunt 12 | . . 2 4 6 . Brawler 2 | . . . . 2 . Sentry 7 | . . 4 3 . . Best Kill Streak 7 | 3 1 4 7 6 . Combat Bots Only 6 | . . 2 3 6 . Max Kills in Single Turn 4 | 1 1 2 4 1 . Gunslinging . | . . . . . . Exploded 2 | . . 1 2 . . Melee . | . . . . . . Uniques/NPCs Destroyed . | . . . . . . Combat | -11 -10 -9 -9 -9 -9 -------- Run | Yrd Mat Mat Sto Gar Rec Hostile Shots Fired 241 | . . 45 34 162 . Missed 60 | . . 17 11 32 . Damage Taken 2053 | 26 38 414 262 1313 . Core 396 | 13 . 37 15 331 . Absorbed by Shields . | . . . . . . Core Remaining (%) 94 | 94 94 . . . . Volleys Fired 178 | 13 18 51 41 52 3 Largest 2 | 2 2 2 2 2 2 Hottest 136 | 60 60 86 98 136 96 Shots Fired 242 | 26 22 65 52 69 8 Gun 143 | 26 20 51 10 28 8 Cannon 72 | . . . 31 41 . Launcher 27 | . 2 14 11 . . Special . | . . . . . . Kinetic 73 | 13 18 32 10 . . Thermal 127 | . . 19 31 69 8 Explosive 27 | . 2 14 11 . . Electromagnetic 15 | 13 2 . . . . Robot Hit Streak 11 | 3 11 7 10 6 2 Robot Miss Streak 5 | 4 3 3 4 5 2 Penetration Max . | . . . . . . Secondary Targets . | . . . . . . Shots Hit Robots 142 | 11 16 38 31 42 4 Core Hits 80 | 7 7 29 23 12 2 Critical Kills . | . . . . . . Critical Parts Destroyed . | . . . . . . Critical Strikes 5 | . . 2 . 3 . Burn 5 | . . 2 . 3 . Melee Attacks . | . . . . . . Impact . | . . . . . . Slashing . | . . . . . . Piercing . | . . . . . . Sneak Attacks . | . . . . . . Combat Hostiles . | . . . . . . Follow-up Attacks . | . . . . . . Damage Inflicted 3164 | 164 280 951 874 826 69 Guns 1257 | 128 173 434 125 333 64 Cannons 800 | . . . 307 493 . Explosions 1102 | 36 107 517 442 . . Melee . | . . . . . . Ramming 5 | . . . . . 5 Kinetic 690 | 46 173 346 125 . . Thermal 1321 | 36 . 88 307 826 64 Explosive 1066 | . 107 517 442 . . Electromagnetic 82 | 82 . . . . . Impact . | . . . . . . Slashing . | . . . . . . Piercing . | . . . . . . Highest Corruption 4 | . . . . 4 4 Average Corruption 4 | . . . . 4 4 Corruption Purged . | . . . . . . Corruption Blocked . | . . . . . . Effects 31 | . . . . 12 19 Message Errors 7 | . . . . 2 5 Matter Fused 7 | . . . . 4 3 Heat Flow Errors 5 | . . . . 1 4 Energy Discharges 2 | . . . . 1 1 Data Loss (minor) 7 | . . . . 4 3 Misfires 2 | . . . . . 2 Alerts 1 | . . . . . 1 Overload Shots . | . . . . . . Overflow Damage 17 | . 17 . . . . Projectiles . | . . . . . . Explosions 17 | . 17 . . . . Melee . | . . . . . . Knockbacks . | . . . . . . Impact . | . . . . . . Kinetic . | . . . . . . Secondary . | . . . . . . Self-Inflicted Damage 126 | 26 38 46 16 . . Shots 5 | 1 1 2 1 . . Rammed 1 | . . . . . 1 Targets Rammed 1 | . . . . . 1 Kicked . | . . . . . . Crushed . | . . . . . . Highest Temperature 688 | 12 . 85 268 688 248 Average Temperature 159 | 12 . 29 101 247 86 Received Heat Transfer 519 | . . 144 63 312 . Effects 21 | . . . . 21 . Shutdowns 3 | . . . . 3 . Energy Bleed 3 | . . . . 3 . Interference 9 | . . . . 9 . Matter Decay 2 | . . . . 2 . Short Circuit 2 | . . . . 2 . Damage (minor) 1 | . . . . 1 . Damage (core) 1 | . . . . 1 . Siege Activations . | . . . . . . Robots Corrupted . | . . . . . . Combat Hostiles . | . . . . . . Parts Fried . | . . . . . . Impact Corruptions . | . . . . . . Robots Melted 1 | . . . . 1 . Combat Hostiles 1 | . . . . 1 . Parts Melted 3 | . . 1 1 1 . Heat Transferred 2850 | . . 370 555 1789 136 Parts Sabotaged . | . . . . . . Parts Stolen . | . . . . . . Parts Stripped . | . . . . . . Power Chain Reactions 1 | 1 . . . . . Alert | -11 -10 -9 -9 -9 -9 ------- Run | Yrd Mat Mat Sto Gar Rec Peak Influence 549 | 30 81 336 549 546 250 Initial 356 | . 19 . 115 356 245 Average 213 | 14 52 166 288 468 179 Maximum Alert Level 2 | . . 1 2 2 1 Low Security (%) 51 | 100 100 75 27 . 33 Level 1 29 | . . 24 49 17 66 Level 2 18 | . . . 23 82 . Level 3 . | . . . . . . Level 4 . | . . . . . . Level 5 . | . . . . . . High Security . | . . . . . . Max Security . | . . . . . . Squads Dispatched 4 | . 1 2 1 . . Investigation 1 | . . 1 . . . Extermination . | . . . . . . Reinforcement 3 | . 1 1 1 . . Assault . | . . . . . . Garrison . | . . . . . . Intercept . | . . . . . . Searches Triggered . | . . . . . . Construction Impeded . | . . . . . . Haulers Reinforced . | . . . . . . Active Scanning Responses . | . . . . . . Cargo Convoy Interrupts . | . . . . . . Stealth | -11 -10 -9 -9 -9 -9 --------- Run | Yrd Mat Mat Sto Gar Rec Distress Signals 1 | . . 1 . . . Communications Jammed . | . . . . . . Distress Signals . | . . . . . . Times Spotted 43 | . 1 12 13 17 . Peak Tracking Total 6 | . 1 3 3 6 . Tactical Retreats 2 | . . 1 . 1 . Traps | -11 -10 -9 -9 -9 -9 ------- Run | Yrd Mat Mat Sto Gar Rec Traps Triggered 1 | . . 1 . . . Indirectly . | . . . . . . Trap Hack Attempts . | . . . . . . Triggered . | . . . . . . Disarmed . | . . . . . . Reprogrammed . | . . . . . . Reused . | . . . . . . Traps Extracted . | . . . . . . Installed . | . . . . . . Triggered . | . . . . . . Machines | -11 -10 -9 -9 -9 -9 ---------- Run | Yrd Mat Mat Sto Gar Rec Machines Disabled 6 | . 1 2 3 . . Max in Single Turn 1 | . 1 1 1 . . Machines Repaired . | . . . . . . Machines Dismantled . | . . . . . . Machines Sabotaged . | . . . . . . Overloaded Fab Kills . | . . . . . . Hacking | -11 -10 -9 -9 -9 -9 --------- Run | Yrd Mat Mat Sto Gar Rec Machines Accessed 9 | . 4 2 3 . . Terminals 6 | . 3 2 1 . . Fabricators . | . . . . . . Repair Stations . | . . . . . . Recycling Units 2 | . 1 . 1 . . Scanalyzers . | . . . . . . Garrison Access 1 | . . . 1 . . Total Hacks 15 | . 9 3 3 . . Successful 8 | . 4 1 3 . . Failed 7 | . 5 2 . . . Catastrophic . | . . . . . . Database Lockouts . | . . . . . . Manual . | . . . . . . Terminals 11 | . 7 3 1 . . Fabricators . | . . . . . . Repair Stations . | . . . . . . Recycling Units 3 | . 2 . 1 . . Scanalyzers . | . . . . . . Garrison Access 1 | . . . 1 . . Terminal Hacks 4 | . 2 1 1 . . Alert Level 2 | . 1 . 1 . . Patrol Status 1 | . 1 . . . . Zone Layout 1 | . . 1 . . . Fabricator Hacks . | . . . . . . Repair Station Hacks . | . . . . . . Recycling Unit Hacks 3 | . 2 . 1 . . Report Inventory 2 | . 1 . 1 . . Retrieve Components 1 | . 1 . . . . Scanalyzer . | . . . . . . Garrison Access Hacks 1 | . . . 1 . . Unlock Access 1 | . . . 1 . . Unauthorized Hacks . | . . . . . . Terminals . | . . . . . . Fabricators . | . . . . . . Repair Stations . | . . . . . . Recycling Units . | . . . . . . Scanalyzers . | . . . . . . Garrison Access . | . . . . . . Data Cores Recovered . | . . . . . . Used . | . . . . . . Hacking Detections 4 | . 3 1 . . . Full Trace Events . | . . . . . . Feedback Events . | . . . . . . Feedback Blocked . | . . . . . . Robot Schematics Acquired . | . . . . . . Robots Built . | . . . . . . Authchips . | . . . . . . Time . | . . . . . . Total Robot Build Rating . | . . . . . . Part Schematics Acquired . | . . . . . . Parts Built . | . . . . . . Authchips . | . . . . . . Time . | . . . . . . Total Part Build Rating . | . . . . . . Parts Repaired . | . . . . . . Time . | . . . . . . Parts Recycled . | . . . . . . Recycled Matter . | . . . . . . Retrieved Matter . | . . . . . . Retrieved Components 2 | . 2 . . . . Parts Scanalyzed . | . . . . . . Part Schematics Acquired . | . . . . . . Parts Damaged . | . . . . . . Bothacking | -11 -10 -9 -9 -9 -9 ------------ Run | Yrd Mat Mat Sto Gar Rec Used RIF Installer . | . . . . . . Robots Hacked . | . . . . . . Non-combat . | . . . . . . Combat . | . . . . . . Robot Hacks Applied . | . . . . . . Relay Couplers Released . | . . . . . . Fabnet Peak Effective % . | . . . . . . Robots Rewired . | . . . . . . Allies Hacked . | . . . . . . Hacks Repelled . | . . . . . . Allies | -11 -10 -9 -9 -9 -9 -------- Run | Yrd Mat Mat Sto Gar Rec Total Allies . | . . . . . . Largest Group . | . . . . . . Highest-Rated Group . | . . . . . . Highest-Rated Ally . | . . . . . . Total Orders . | . . . . . . Ally Attacks . | . . . . . . Total Damage . | . . . . . . Kills . | . . . . . . Allies Corrupted . | . . . . . . Allies Melted . | . . . . . . Intel | -11 -10 -9 -9 -9 -9 ------- Run | Yrd Mat Mat Sto Gar Rec Robot Analysis Total . | . . . . . . Derelict Logs Recovered . | . . . . . . Drone Launches . | . . . . . . Drone Recoveries . | . . . . . . Exploration | -11 -10 -9 -9 -9 -9 ------------- Run | Yrd Mat Mat Sto Gar Rec Turns Passed 2838 | 193 457 709 324 556 599 Spaces Moved 1365 | 93 255 358 136 243 280 Core 13 | 8 . . . 5 . Treads 1352 | 85 255 358 136 238 280 Legs . | . . . . . . Wheels . | . . . . . . Hover . | . . . . . . Flight . | . . . . . . Fastest Speed 50 | 50 160 160 160 160 160 Average Speed 171 | 150 160 160 160 172 207 Slowest Speed 500 | 160 160 160 160 500 320 Overloaded Moves . | . . . . . . Propulsion Burnouts . | . . . . . . Robots Hopped . | . . . . . . Cave-ins Triggered . | . . . . . . Exploration Rate (%) 33 | 6 40 24 26 43 61 Regions Visited 5 Branch Regions 2 Pre-discovered Areas . | . . . . . . Known Exits Taken 3 | . 1 1 1 . . Unknown Exits Taken 1 | 1 . . . . . Scrap Searched . | . . . . . . Spaces Dug . | . . . . . . Terrain Destroyed 165 | . 8 80 77 . . Melee . | . . . . . . Projectile . | . . . . . . AOE 165 | . 8 80 77 . . Terrain Rammed . | . . . . . . Walls Destroyed . | . . . . . . Machines Disabled . | . . . . . . Actions | -11 -10 -9 -9 -9 -9 --------- Run | Yrd Mat Mat Sto Gar Rec Total 1625 | 120 282 430 191 311 291 Wait . | . . . . . . Move 1361 | 92 254 357 136 242 280 Hop . | . . . . . . Pick Up 35 | 8 6 10 4 4 3 Fast Attach . | . . . . . . Attach 21 | 7 . 3 . 10 1 Detach . | . . . . . . Swap 15 | . 2 4 5 2 2 Drop 14 | . 2 5 5 1 1 Fire 178 | 13 18 51 41 52 3 Melee . | . . . . . . Ram . | . . . . . . Kick . | . . . . . . Crush 1 | . . . . . 1 Escape Stasis . | . . . . . . Rewire . | . . . . . . Trap . | . . . . . . Miscellaneous . | . . . . . . Route ------- -11/Scrapyard -10/Materials -9/Materials -9/Storage -9/Garrison -9/Recycling History --------- Turn | Location | Event 2 | -11/Scrapyard | Met Revision 17 8 | -11/Scrapyard | Discovered new exit (range 15) 194 | -11/Scrapyard | Entered Materials 300 | -10/Materials | Build established: Mutant 449 | -10/Materials | Discovered new exit (range 14) 614 | -10/Materials | Identified exit to Materials 651 | -10/Materials | Entered another Materials area 651 | -9/Materials | Evolved 2 slots: Utility x2 1248 | -9/Materials | Discovered new exit (range 3) 1264 | -9/Materials | Identified exit to Storage 1360 | -9/Materials | Entered Storage 1643 | -9/Storage | Build established: Scavenger-Mutant 1684 | -9/Storage | Identified exit to Garrison 1684 | -9/Storage | Entered Garrison 1740 | -9/Garrison | Triggered checkpoint 1794 | -9/Garrison | Triggered checkpoint 1996 | -9/Garrison | Triggered checkpoint 2001 | -9/Garrison | Triggered checkpoint 2022 | -9/Garrison | Core integrity fell below 50% 2055 | -9/Garrison | Core integrity fell below 20% 2083 | -9/Garrison | Lost 7 parts (1p2n1u3w) 2140 | -9/Garrison | Triggered checkpoint 2209 | -9/Garrison | Discovered new exit (range 14) 2237 | -9/Garrison | Identified exit to Recycling 2240 | -9/Garrison | Entered Recycling 2241 | -9/Recycling | Joined Warlord attack on 0b10 via Recycling 2839 | -9/Recycling | Self-destructed Last Messages --------------- System corrupted: Component data lost. System corrupted: IFF burst signal emitted. System corrupted: Heat flow error (+268). Acquired Imp. Treads. INJXV1/UM/9KIHW8IK:/R System corrupted: Matter fused (-8). R-06 Scavenger destroyed. 3/<7X5I3G0|C6KYL/9BME#WBG